[Event "Summer Prague Open-A 2022"]
[Site "Prague"]
[Date "2022.08.10"]
[Round "7.6"]
[White "Kvaloy, Aksel Bu"]
[Black "Kaspi, Alexander"]
[Result "0-1"]
[ECO "B98"]
[WhiteElo "2289"]
[BlackElo "2414"]
[Annotator "TA"]
[PlyCount "80"]
[EventDate "2022.08.05"]
[EventType "swiss"]
[EventCountry "CZE"]
[SourceTitle "playchess.com"]
[Source "ChessBase"]
[SourceQuality "1"]
[TimeControl "40/5400+30:1800+30"]

{[%evp 21,79,11,46,-68,-53,-75,30,0,22,12,27,42,29,0,33,22,0,-21,-34,-106,-101,-99,-95,-118,-100,-193,-173,-192,-174,-327,-332,-289,-291,-685,-677,-668,-630,-506,-534,-1521,-1359,-1313,-1131,-29987,-1194,-29990,-1315,-2864,-3091,-3921,-3737,-12829,-6145,-29992,-29978,-12839,-12832,-29993,-29994,-29999]} 1. e4 {[%emt 0:00:06]} c5 {[%emt 0:00:12]} 2. Nf3 {[%emt 0:00:16]} d6 {[%emt 0:00:07]} 3. d4 {[%emt 0:00:22]} cxd4 {[%emt 0:00:09]} 4. Nxd4 {[%emt 0:00:03]} Nf6 {[%emt 0:00:07]} 5. Nc3 {[%emt 0:00:16]} a6 {[%emt 0:00:07]} 6. Bg5 {[%emt 0:00:19]} e6 {[%emt 0:00:25]} 7. f4 {[%emt 0:00:30]} Be7 {[%emt 0:00:08]} 8. Qf3 {[%emt 0:00:37]} Qc7 {[%emt 0:00:09]} 9. O-O-O {[%emt 0:00:30]} h6 {[%emt 0:01:11]} 10. Bh4 {[%emt 0:00:46]} Nbd7 {[%emt 0:00:12]} 11. Be2 {[%emt 0:00:34]} Rb8 {[%emt 0:09:09] 11...0-0 is vanishing.} (11... Nxe4 $2 12. Nxe4 (12. Nxe6 fxe6 13. Bxe7 d5 $16) 12... Bxh4 {[#]} 13. Nxe6 $1 {[%mdl 512]} fxe6 14. Qh5+ Kf8 15. Nxd6 $18 (15. Qxh4 d5 $16)) (11... O-O {is more complex.} 12. Qg3 Nc5 13. Bf3 e5) 12. g4 {[%emt 0:15:57] B99: Sicilian Najdorf: 6 Bg5 e6 7 f4 Be7 8 Qf3 Qc7 9 0-0-0 Nbd7.} (12. Qg3 $14) 12... b5 $1 $15 {[%emt 0:04:16]} ({But not} 12... Nxe4 13. Nxe6 fxe6 14. Bxe7 $16 (14. Qxe4 Bxh4 15. Nd5 Qc5 $11)) 13. Bxf6 {[%emt 0:08:18] [#]} gxf6 $146 {[%emt 0:03:23]} (13... Bxf6 $17 14. Ndxb5 axb5 15. Nxb5 Qb6 16. Nxd6+ Kf8) ({Predecessor:} 13... Bxf6 14. Bxb5 Bxd4 15. Bxd7+ Bxd7 16. Rxd4 Qb6 17. Qd3 Qxb2+ 18. Kd2 Bb5 19. Qe3 O-O {0-1 (30) Heinemann,J (2294)-Warakomski,T (2518) Warsaw 2017}) 14. Bd3 {[%emt 0:10:02] White has an edge.} b4 {[%emt 0:02:38]} 15. Nce2 {[%emt 0:07:28]} Bb7 {[%emt 0:00:40]} 16. Kb1 {[%emt 0:00:59]} Nc5 {[%emt 0:00:32]} 17. Ng3 {[%emt 0:13:41]} a5 {[%emt 0:04:48]} 18. Bb5+ {[%emt 0:15:12]} Kf8 {[%emt 0:00:52]} 19. f5 {[%emt 0:08:10] Strongly threatening fxe6.} e5 {[%emt 0:02:56]} 20. Nb3 {[%emt 0:01:49] [#] Black continues to play with concentration.} ({White should try} 20. Nde2 $1 $15) 20... Nxe4 $1 $17 {[%emt 0:09:13][%mdl 512]} 21. Nxe4 {[%emt 0:00:14]} Bxe4 {[%emt 0:00:11][%mdl 64] Discovered Attack. Dancing on a razor blade.} 22. Qxe4 {[%emt 0:00:03]} Rxb5 {[%emt 0:00:07]} 23. Rd3 {[%emt 0:02:52]} (23. Nd2 $17) 23... Kg7 $19 {[%emt 0:01:05]} 24. Rhd1 {[%emt 0:05:41]} a4 $36 {[%emt 0:01:45][%cal Ba5a4,Ba4a3][%mdl 2080] Black is really pushing.} 25. Nd2 {[%emt 0:00:39]} (25. Nc1 {was the only defense.}) 25... Rc8 {[%emt 0:00:54]} 26. Rc1 {[%emt 0:00:15]} a3 {[%emt 0:05:27]} 27. b3 $2 {[%emt 0:01:00]} (27. Rd5 Rb6 28. Nb3) 27... d5 {[%emt 0:00:45]} 28. Qe2 {[%emt 0:00:09]} Rc5 {[%emt 0:00:24][%cal Rc5c2]} 29. Nf1 {[%emt 0:00:27]} e4 {[%emt 0:01:35]} 30. Rh3 {[%emt 0:00:06]} Qe5 {[%emt 0:00:20][%csl Ga3][%cal Re5b2]} 31. c4 {[%emt 0:00:18]} bxc3 {[%emt 0:01:15]} 32. Qe3 {[%emt 0:00:26]} Kf8 {[%emt 0:02:07]} (32... c2+ $142 33. Rxc2 Kf8 34. Qxh6+ Ke8 35. Qh8+ Kd7 36. Qxc8+ Rxc8 37. Ne3 Rxc2 38. Kxc2 Bb4 39. Nd1 e3 40. Kd3 e2 41. Kc2 Qe4+ 42. Rd3 e1=Q 43. Kc1 Qxd3 44. h4 Qexd1#) 33. Rxh6 {[%emt 0:00:16]} Bd6 {[%emt 0:01:54]} (33... c2+ $142 34. Rxc2 Kg8 35. Rh8+ Kxh8 36. Qxc5 Rxc5 37. Nd2 Rxc2 38. Kxc2 Qb2+ 39. Kd1 e3 40. Nc4 dxc4 41. Ke1 Qf2+ 42. Kd1 Qd2#) 34. Rh8+ {[%emt 0:00:54]} Ke7 {[%emt 0:00:13] ( -> ...c2+)} 35. Rxc8 {[%emt 0:00:06]} Rxc8 {[%emt 0:00:04]} 36. Qa7+ {[%emt 0:00:24]} Rc7 {[%emt 0:00:10]} 37. Qa5 {[%emt 0:00:42]} d4 {[%emt 0:01:02][%cal Bd5d4,Bd4d3][%mdl 32]} 38. Qxe5+ {[%emt 0:00:08]} Bxe5 {[%emt 0:00:13]} 39. Ka1 {[%emt 0:00:08]} c2 {[%emt 0:00:23][%cal Rd4d3]} 40. g5 {[%emt 0:00:10]} d3# {[%emt 0:00:06] Weighted Error Value: White=1.81/Black=0.56} 0-1

[Event "Summer Prague Open-A 2022"]
[Site "Prague"]
[Date "2022.08.10"]
[Round "7.7"]
[White "Mannion, Stephen R"]
[Black "Zanan, Evgeny"]
[Result "0-1"]
[ECO "B90"]
[WhiteElo "2232"]
[BlackElo "2521"]
[Annotator "TA"]
[PlyCount "112"]
[EventDate "2022.08.05"]
[EventType "swiss"]
[EventCountry "CZE"]
[SourceTitle "playchess.com"]
[Source "ChessBase"]
[SourceQuality "1"]
[TimeControl "40/5400+30:1800+30"]

{[%evp 16,112,34,20,79,0,0,-15,-3,-50,-41,-43,-29,-30,-35,-42,-32,-64,-42,-65,-36,-43,-16,-29,-33,-29,-6,-11,-11,-16,-12,-12,-15,-13,-11,-12,-15,-21,-25,-25,-22,-23,-26,-45,-45,-56,-53,-67,-67,-66,-55,-66,-66,-66,-66,-86,-86,-91,-97,-99,-100,-191,-208,-268,-262,-565,-101,-100,-100,-100,-100,-119,-108,-127,-129,-129,-121,-121,-125,-136,-143,-129,-124,-173,-176,-173,-179,-172,-170,-1446,-1317,-1179,-1162,-961,-759,-1777,-1544,-852,-720]} 1. e4 {[%emt 0:00:27]} c5 {[%emt 0:04:21]} 2. Nf3 {[%emt 0:00:06]} d6 {[%emt 0:00:17]} 3. d4 {[%emt 0:00:10]} cxd4 {[%emt 0:00:04]} 4. Nxd4 {[%emt 0:00:05]} Nf6 {[%emt 0:00:04]} 5. Nc3 {[%emt 0:00:07]} a6 {[%emt 0:00:05]} 6. f3 {[%emt 0:00:09]} e5 {[%emt 0:00:24]} 7. Nb3 {[%emt 0:00:06]} Be6 {[%emt 0:00:06]} 8. Be3 {[%emt 0:00:10]} Nc6 {[%emt 0:09:11]} 9. Qd2 {[%emt 0:17:21]} Rc8 {[%emt 0:16:48] B90: Sicilian Najdorf: Unusual White 6th moves, 6 Be3 Ng4 and 6 Be3 e5.} (9... d5 $11 {keeps the balance.} 10. exd5 Nxd5) 10. Be2 {[%emt 0:09:36] [#]} (10. O-O-O $16) 10... Ne7 $146 {[%emt 0:19:25]} ({Predecessor:} 10... h5 11. O-O-O Qc7 12. Kb1 b5 13. Bg5 Nd7 14. Bd3 Nb6 15. f4 f6 16. Bh4 Nc4 17. Bxc4 bxc4 {½-½ (44) Gombar,P (2033)-Jancovic,P (2149) Slovakia 2011}) 11. O-O {[%emt 0:27:56]} d5 {[%emt 0:00:58] With the idea ...d4. The position is equal.} 12. exd5 (12. f4 $11 {should be considered.}) 12... Nexd5 {[%emt 0:00:14]} (12... Nfxd5 {seems wilder.} 13. Nxd5 Nxd5 14. f4 exf4 15. Bxf4 Nxf4 16. Qxf4 Bd6) 13. Nxd5 {[%emt 0:00:26]} Nxd5 {[%emt 0:02:17]} 14. Bf2 {[%emt 0:01:08]} Be7 {[%emt 0:03:41]} 15. Bd3 {[%emt 0:03:12]} Nb4 {[%emt 0:15:13] Threatens to win with ...Bxb3.} 16. Rfd1 {[%emt 0:05:06]} Nxd3 {[%emt 0:00:42]} 17. cxd3 {[%emt 0:04:19]} O-O 18. d4 Qd5 {[%emt 0:06:36]} (18... Bxb3 $5 19. axb3 exd4 $15) 19. dxe5 {[%emt 0:03:41]} Qxe5 {[%emt 0:00:07]} 20. Nd4 {[%emt 0:10:11]} Bg5 {[%emt 0:00:30] A strong pair of Bishops.} 21. Qe1 {[%emt 0:00:36]} (21. Qb4 {with more complications.} Bf4 22. g3 Be3 23. Bxe3 Qxe3+ 24. Kg2) 21... Qxe1+ {[%emt 0:00:16]} 22. Rxe1 {[%emt 0:00:25]} Bd7 {[%emt 0:00:52]} 23. Rad1 {[%emt 0:07:00]} Rfd8 {[%emt 0:00:16]} 24. Nb3 {[%emt 0:01:08]} Bb5 {[%emt 0:09:57]} 25. Rxd8+ {[%emt 0:04:51]} Rxd8 {[%emt 0:00:07]} 26. Nc5 {[%emt 0:00:11]} Bc6 {[%emt 0:00:12]} 27. Ne4 {[%emt 0:00:35] Against Rd2} Bh6 {[%emt 0:04:38]} 28. Be3 {[%emt 0:01:46]} f5 {[%emt 0:05:11]} 29. Bxh6 {[%emt 0:02:28][%cal Oe4g3]} fxe4 $11 {[%emt 0:00:03][%mdl 4096] Endgame KRB-KRB} 30. Bg5 {[%emt 0:00:13]} Rd5 {[%emt 0:00:03]} 31. h4 {[%emt 0:00:14]} exf3 {[%emt 0:00:20]} 32. gxf3 {[%emt 0:00:04]} Rf5 {[%emt 0:00:41]} 33. Re3 {[%emt 0:02:17]} h6 {[%emt 0:00:20]} 34. Be7 {[%emt 0:00:25]} Bxf3 {[%emt 0:00:07]} 35. a3 {[%emt 0:00:13]} Bc6 {[%emt 0:00:23]} 36. b4 {[%emt 0:00:55]} Rf4 {[%emt 0:00:57]} 37. Kh2 {[%emt 0:00:26]} Rg4 {[%emt 0:02:11]} 38. Rg3 {[%emt 0:00:53]} (38. Rd3 $17) 38... Re4 $19 {[%emt 0:00:07]} 39. Bf6 {[%emt 0:00:06] [#]} Kf7 {[%emt 0:00:02]} ({And not} 39... Re2+ 40. Kg1 $15) 40. Bxg7 {[%emt 0:00:05] [#]} (40. Bc3 {is tougher.} Rxh4+ 41. Rh3) 40... Rxh4+ $2 {[%emt 0:00:03]} (40... Re1 $1 $19 {[%csl Gc6][%cal Re1h1] has better winning chances.} 41. Kh3 Rh1+ 42. Kg4 Kxg7) 41. Kg1 $17 {[%emt 0:30:45]} h5 {[%emt 0:30:35]} 42. Be5 {[%emt 0:00:00]} Ke6 {[%emt 0:00:00]} 43. Bb8 {[%emt 0:00:00]} Kd5 {[%emt 0:00:00]} 44. Bc7 {[%emt 0:00:00]} Kc4 {[%emt 0:00:00]} 45. Bd8 {[%emt 0:00:00]} Rh1+ {[%emt 0:00:00]} 46. Kf2 {[%emt 0:00:00]} Kb5 {[%emt 0:00:00]} 47. Rg5+ {[%emt 0:00:00]} Ka4 {[%emt 0:00:00]} 48. Be7 {[%emt 0:00:00]} Rh3 {[%emt 0:00:00]} 49. Ra5+ {[%emt 0:00:34]} (49. Rf5 $17 {was called for.}) 49... Kb3 $19 {[%emt 0:00:00]} 50. Rf5 {[%emt 0:00:58]} h4 {[%emt 0:00:00][%cal Bh5h4,Bh4h3][%mdl 32]} 51. Rh5 {[%emt 0:00:12]} Rf3+ {[%emt 0:01:32]} 52. Ke2 $2 {[%emt 0:00:11]} (52. Kg1) 52... Rf7 {[%emt 0:00:04] aiming for ...Bf3+. Black is clearly winning.} 53. Re5 {[%emt 0:00:46]} h3 {[%emt 0:00:19] ( -> ...h2)} 54. Bd6 {[%emt 0:01:43]} Bb5+ {[%emt 0:01:53]} 55. Kd2 {[%emt 0:00:46]} Rd7 {[%emt 0:00:47]} 56. Re3+ {[%emt 0:02:14]} Kb2 {[%emt 0:00:38] Weighted Error Value: White=0.43/Black=0.19 (very precise)} 0-1

[Event "Summer Prague Open-A 2022"]
[Site "Prague"]
[Date "2022.08.10"]
[Round "7.8"]
[White "Lalic, Bogdan"]
[Black "Guz, Ari"]
[Result "1-0"]
[ECO "E32"]
[WhiteElo "2412"]
[BlackElo "2331"]
[Annotator "TA"]
[PlyCount "77"]
[EventDate "2022.08.05"]
[EventType "swiss"]
[EventCountry "CZE"]
[SourceTitle "playchess.com"]
[Source "ChessBase"]
[SourceQuality "1"]
[TimeControl "40/5400+30:1800+30"]

{[%evp 9,77,3,13,8,7,18,7,15,53,42,57,61,55,41,78,75,99,68,116,93,118,115,118,112,127,120,132,135,153,168,256,258,234,144,140,125,108,110,117,115,102,68,83,54,124,108,100,104,105,93,118,114,193,191,150,99,132,36,108,87,227,222,347,360,524,518,2804,1634,1156,1072]} 1. d4 {[%emt 0:01:01]} Nf6 {[%emt 0:03:02]} 2. c4 {[%emt 0:00:13]} e6 {[%emt 0:00:06]} 3. Nc3 {[%emt 0:00:06]} Bb4 {[%emt 0:00:31]} 4. Qc2 {[%emt 0:00:11]} d6 {[%emt 0:00:32]} 5. Bd2 {[%emt 0:00:17]} O-O {[%emt 0:08:20]} 6. a3 {[%emt 0:00:19] E32: Nimzo-Indian: Classical (4 Qc2): 4...0-0.} Bxc3 {[%emt 0:00:08]} 7. Bxc3 {[%emt 0:00:10]} b6 {[%emt 0:04:00]} 8. e4 {[%emt 0:00:42] The position is equal.} Bb7 {[%emt 0:09:30]} 9. Bd3 {[%emt 0:00:32]} c5 {[%emt 0:01:07][%cal Ob6b5] [#]} 10. d5 $146 {[%emt 0:00:27]} ({Predecessor:} 10. Ne2 cxd4 11. Nxd4 Nbd7 12. O-O-O Ne5 13. Rhe1 Rc8 14. Nb5 a6 15. Bxe5 axb5 16. Bxd6 Qxd6 {½-½ (30) Adhiban,B (2556)-Bitoon,R (2403) Manila 2013}) 10... Nbd7 {[%emt 0:04:38][%cal Re6d5]} 11. Ne2 {[%emt 0:00:51]} exd5 {[%emt 0:04:51]} 12. exd5 {[%emt 0:00:09]} Ne5 {[%emt 0:10:16]} 13. O-O {[%emt 0:03:25]} Re8 {[%emt 0:00:32]} (13... Nxd3 $14 {is more appropriate.} 14. Qxd3 b5) 14. Ng3 $16 {[%emt 0:02:01]} b5 {[%emt 0:01:30]} 15. b3 {[%emt 0:00:31]} a5 {[%emt 0:05:30]} 16. a4 {[%emt 0:03:47]} bxc4 {[%emt 0:00:39]} 17. bxc4 {[%emt 0:00:06]} Ba6 {[%emt 0:00:10]} 18. Rfe1 {[%emt 0:05:56]} Rb8 {[%emt 0:05:18]} 19. Bf1 {[%emt 0:02:18]} Bc8 {[%emt 0:08:56]} (19... Kf8 $142 20. f4 Ng6) 20. f4 $18 {[%emt 0:03:04]} Ned7 {[%emt 0:01:37]} 21. Nf5 {[%emt 0:16:37] Threatens to win with Rxe8+.} Nf8 {[%emt 0:01:24]} 22. Rxe8 {[%emt 0:06:57]} Nxe8 {[%emt 0:00:11]} 23. Ng3 {[%emt 0:03:42] White is much more active. The black rooks are badly placed.} Ng6 {[%emt 0:01:01]} 24. Re1 {[%emt 0:01:54][%cal Oc3a5]} Bd7 {[%emt 0:01:38]} (24... Nxf4 $2 25. Bxa5 $1 {[%mdl 512]} Qd7 26. Qe4 $18) 25. Qd2 {[%emt 0:01:45]} Bxa4 {[%emt 0:02:52]} 26. Bxa5 {[%emt 0:00:20]} Qf6 {[%emt 0:03:53]} (26... Qh4 $14) 27. f5 {[%emt 0:00:49]} Ne5 {[%emt 0:00:45]} 28. Bc3 {[%emt 0:01:21] This bishop pair is nice.} Qh4 {[%emt 0:01:04]} 29. Bxe5 {[%emt 0:09:05]} dxe5 {[%emt 0:00:09]} 30. Ne4 {[%emt 0:00:40][%cal Bg3e4,Be4c5,Bc5b3][%mdl 32]} Bd7 {[%emt 0:04:22]} (30... Rc8 $16) 31. Nxc5 {[%emt 0:05:57]} Bxf5 {[%emt 0:00:11]} 32. Rxe5 {[%emt 0:01:03]} (32. Na6 $142 Ra8 33. Rxe5) 32... Nd6 $16 {[%emt 0:04:26]} 33. Qf2 {[%emt 0:02:11]} (33. Re1 $1 $16) 33... Qf6 {[%emt 0:03:29]} (33... Qxf2+ $14 34. Kxf2 h5) 34. Re1 {[%emt 0:02:06]} Rc8 {[%emt 0:01:22] [#] This costs Black the game.} (34... h5 $16) 35. Nb3 $1 $18 {[%emt 0:04:08] aiming for c5.} g6 {[%emt 0:00:22]} (35... Ne4 {was worth a try.} 36. Qe3 h6) 36. c5 {[%emt 0:02:33][%cal Bc4c5,Bc5d6,Bd6d7][%mdl 32]} Rb8 {[%emt 0:02:31]} (36... Nb7 $142 37. g4 Qg5) 37. cxd6 {[%emt 0:03:56] White is clearly winning.} Rxb3 {[%emt 0:00:07]} (37... Qxd6 $142 38. Qd4 h5) 38. d7 {[%emt 0:00:15] Intending Re8+ and mate.} Kg7 {[%emt 0:00:34] [#]} 39. Re8 $1 {[%emt 0:00:05] Weighted Error Value: White=0.13 (very precise) /Black=0.28 (precise)} 1-0

[Event "Summer Prague Open-A 2022"]
[Site "Prague"]
[Date "2022.08.10"]
[Round "7.9"]
[White "Hrabusa, Matej"]
[Black "Kambrath, Yannick"]
[Result "1/2-1/2"]
[ECO "D30"]
[WhiteElo "2354"]
[BlackElo "2401"]
[Annotator "TA"]
[PlyCount "54"]
[EventDate "2022.08.05"]
[EventType "swiss"]
[EventCountry "CZE"]
[SourceTitle "playchess.com"]
[Source "ChessBase"]
[SourceQuality "1"]
[TimeControl "40/5400+30:1800+30"]

{[%evp 10,54,-3,0,-22,-7,-15,-22,0,-7,-8,-20,-14,-16,0,-13,-10,-19,-4,-10,33,9,5,7,7,7,10,11,5,6,7,10,3,4,28,8,10,0,0,-161,0,0,0,-1,0,-7,0]} 1. d4 {[%emt 0:00:03]} d5 {[%emt 0:04:10][%cal Bd7d5,Bd5c4][%mdl 32]} 2. c4 {[%emt 0:00:06]} e6 {[%emt 0:00:08]} 3. Nf3 {[%emt 0:00:08]} Nf6 {[%emt 0:01:09]} 4. g3 {[%emt 0:00:06]} Bb4+ {[%emt 0:00:54]} 5. Nbd2 {[%emt 0:00:25]} dxc4 {[%emt 0:01:41]} 6. Bg2 {[%emt 0:00:14]} b5 {[%emt 0:02:03] Inhibits Qa4. E04: Open Catalan: 5 Nf3.} 7. O-O {[%emt 0:00:18][%cal Od2c4]} a5 {[%emt 0:01:07]} 8. a3 {[%emt 0:02:07]} Be7 {[%emt 0:02:14]} 9. b3 {[%emt 0:02:02]} cxb3 $1 {[%emt 0:11:07]} 10. Qxb3 {[%emt 0:00:58]} c6 {[%emt 0:00:34]} 11. Ne5 {[%emt 0:02:43]} Bb7 {[%emt 0:03:44]} (11... Qxd4 $2 12. Nxc6 $1 Qd7 13. Ne5 $18 (13. Qxb5 Nd5 $11) (13. Nxe7 Bb7 $16)) 12. Bb2 {[%emt 0:01:57]} O-O {[%emt 0:02:32]} 13. Rfc1 {[%emt 0:06:15] [#]} Ra6 $146 {[%emt 0:03:55][%cal Ba8a6,Ba6b6,Bb6b5][%mdl 32]} ({Predecessor:} 13... Nfd7 14. Nd3 Qb6 15. Ne4 Na6 16. Qc3 b4 17. axb4 axb4 18. Qc4 Rfb8 19. Bh3 Qd8 {1-0 (36) Bosiocic,M (2611)-Dragnev,V (2535) Spilimbergo 2019}) 14. a4 {[%emt 0:09:09]} Rb6 {[%emt 0:09:41]} 15. axb5 {[%emt 0:07:11]} Rxb5 {[%emt 0:01:35]} 16. Qc2 {[%emt 0:06:48]} c5 {[%emt 0:18:47]} 17. Bxb7 {[%emt 0:02:02]} Rxb7 {[%emt 0:00:07]} 18. Ndc4 {[%emt 0:03:22]} Ra7 {[%emt 0:01:31]} 19. dxc5 {[%emt 0:08:38]} Bxc5 {[%emt 0:02:01]} 20. Nd3 {[%emt 0:01:02]} Be7 {[%emt 0:03:07]} 21. Qa4 {[%emt 0:04:21]} Qd5 {[%emt 0:05:22]} 22. Nxa5 {[%emt 0:05:16]} (22. Nb6 $5 {[%cal Rb6d5]} Qb7 23. Bd4 $11) 22... Bd8 {[%emt 0:02:38][%cal Ra7a5]} 23. Rc5 {[%emt 0:03:28]} Qa8 {[%emt 0:00:59]} 24. Ne5 $2 {[%emt 0:05:15] [#]} (24. Bd4 $11 {and White has nothing to worry.}) 24... Nbd7 $2 {[%emt 0:04:36]} (24... Ne4 $1 $19 {[%cal Re4c5]} 25. Rb5 Nd6 26. Rxb8 (26. Rc5 $2 Nb7 $19) 26... Qxb8) 25. Nxd7 $11 {[%emt 0:01:47] The position is equal.} Nxd7 {[%emt 0:00:03]} 26. Rb5 {[%emt 0:01:35]} Bf6 {[%emt 0:01:48]} 27. Bxf6 {[%emt 0:04:59]} Nxf6 {[%emt 0:00:14] Weighted Error Value: White=0.16 (very precise) /Black=0.13 (very precise)} 1/2-1/2

[Event "Summer Prague Open-A 2022"]
[Site "Prague"]
[Date "2022.08.10"]
[Round "7.10"]
[White "Weishaeutel, Moritz"]
[Black "Santagati, Alessandro"]
[Result "1-0"]
[ECO "C02"]
[WhiteElo "2400"]
[BlackElo "2299"]
[Annotator "RC"]
[PlyCount "55"]
[EventDate "2022.08.05"]
[EventType "swiss"]
[EventCountry "CZE"]
[SourceTitle "playchess.com"]
[Source "ChessBase"]
[SourceQuality "1"]
[TimeControl "40/5400+30:1800+30"]

1. e4 {[%emt 0:00:02]} e6 {[%emt 0:00:07]} 2. d4 {[%emt 0:00:06]} d5 {[%emt 0:00:06]} 3. e5 {[%emt 0:00:04]} c5 {[%emt 0:00:23]} 4. c3 {[%emt 0:00:06]} Nc6 {[%emt 0:00:05]} 5. Nf3 {[%emt 0:00:08]} Qb6 {[%emt 0:00:07]} 6. Bd3 {[%emt 0:00:06]} cxd4 {[%emt 0:00:13]} 7. O-O {[%emt 0:00:06]} Bd7 {[%emt 0:01:04]} 8. Re1 {[%emt 0:00:05]} Nge7 {[%emt 0:00:39]} 9. h4 {[%emt 0:00:06]} h6 {[%emt 0:00:08]} 10. Nbd2 {[%emt 0:00:08]} dxc3 {[%emt 0:03:58]} 11. bxc3 {[%emt 0:00:12]} Na5 {[%emt 0:01:26]} 12. Ba3 {[%emt 0:00:12]} Nec6 {[%emt 0:02:10]} 13. Bxf8 {[%emt 0:00:16]} Rxf8 {[%emt 0:02:05]} 14. Rb1 {[%emt 0:04:35]} Qc7 {[%emt 0:01:27]} 15. c4 {[%emt 0:00:55]} O-O-O {[%emt 0:02:08]} 16. cxd5 {[%emt 0:11:18]} exd5 {[%emt 0:03:38]} 17. Nb3 {[%emt 0:00:11]} Nxb3 {[%emt 0:10:52]} 18. Qxb3 {[%emt 0:00:09]} Bg4 {[%emt 0:01:17]} 19. Rec1 {[%emt 0:07:22]} Bxf3 {[%emt 0:11:14]} 20. gxf3 {[%emt 0:01:29]} Kb8 {[%emt 0:05:34]} 21. Ba6 {[%emt 0:03:13]} b6 {[%emt 0:02:25]} 22. Qa4 {[%emt 0:00:59]} Rc8 {[%emt 0:01:57]} 23. Bb5 {[%emt 0:00:23]} Qxe5 {[%emt 0:02:42]} 24. Bxc6 {[%emt 0:00:20]} Qc7 {[%emt 0:10:01]} 25. Kg2 {[%emt 0:01:39]} g5 {[%emt 0:03:38]} 26. h5 {[%emt 0:03:33]} g4 {[%emt 0:01:09]} 27. f4 {[%emt 0:00:48]} Qd8 {[%emt 0:02:11]} 28. Qa6 {[%emt 0:01:02]} 1-0

[Event "Summer Prague Open-A 2022"]
[Site "Prague"]
[Date "2022.08.10"]
[Round "7.11"]
[White "Neuman, Petr"]
[Black "Karas, Marek"]
[Result "1-0"]
[ECO "A16"]
[WhiteElo "2378"]
[BlackElo "2286"]
[Annotator "TA"]
[PlyCount "71"]
[EventDate "2022.08.05"]
[EventType "swiss"]
[EventCountry "CZE"]
[SourceTitle "playchess.com"]
[Source "ChessBase"]
[SourceQuality "1"]
[TimeControl "40/5400+30:1800+30"]

{[%evp 11,71,6,8,-14,-4,0,0,-1,0,0,0,0,10,-16,0,0,12,8,73,87,87,84,221,218,253,250,319,286,296,298,300,288,290,242,242,245,240,244,317,312,322,320,306,275,428,327,503,339,341,323,489,506,722,566,858,858,29964,29956,4935,1681,2177,1561]} 1. c4 {[%emt 0:00:05]} Nf6 {[%emt 0:00:46]} 2. Nc3 {[%emt 0:00:55]} e5 {[%emt 0:00:43]} 3. e3 {[%emt 0:00:26]} Bb4 {[%emt 0:00:09]} 4. Nge2 {[%emt 0:00:37]} O-O {[%emt 0:00:19]} 5. a3 {[%emt 0:00:48]} Be7 {[%emt 0:00:13]} 6. d4 {[%emt 0:00:22]} exd4 {[%emt 0:00:07]} 7. Qxd4 {[%emt 0:00:17] A22: English Opening: 1...e5 2 Nc3 Nf6.} c6 {[%emt 0:00:14]} 8. Nf4 {[%emt 0:01:29]} Na6 {[%emt 0:02:48]} 9. b4 {[%emt 0:03:45] Against Nc5. The position is equal.} c5 {[%emt 0:00:20]} 10. bxc5 {[%emt 0:00:32]} Nxc5 {[%emt 0:00:18]} 11. Qd1 {[%emt 0:00:31] [#] Against Nb3} Nce4 $146 {[%emt 0:10:26]} ({Predecessor:} 11... Nfe4 12. Bb2 Bf6 13. Qc2 Nxc3 14. Bxc3 b6 15. Bd3 Bxc3+ 16. Qxc3 Bb7 17. O-O Ne6 18. Qc2 Nxf4 19. exf4 g6 20. Be4 Bxe4 21. Qxe4 Rc8 22. Rad1 Re8 {½-½ (22) Dittmar,P-Bellmann,H freechess.de 2018}) 12. Bd2 {[%emt 0:09:01]} Nxc3 {[%emt 0:09:13]} 13. Bxc3 {[%emt 0:03:57]} Ne4 {[%emt 0:00:16]} 14. Bb4 {[%emt 0:01:57]} Bxb4+ {[%emt 0:08:45]} (14... Bf6 $11 {keeps the balance.}) 15. axb4 $16 {[%emt 0:01:11]} Qf6 {[%emt 0:00:15] ...Qc3+ is the strong threat.} 16. Bd3 {[%emt 0:02:03][%cal Bf1d3,Bd3e4,Be4d5][%mdl 32]} g5 {[%emt 0:10:05] [#] This costs Black the game.} (16... Nc3 $16 17. Qc1 (17. Qh5 g6 $11) 17... d5) 17. O-O $1 $18 {[%emt 0:03:19]} gxf4 {[%emt 0:01:12]} (17... Nc3 18. Nh5) 18. Bxe4 {[%emt 0:00:07]} Qe5 {[%emt 0:07:32]} 19. Qg4+ {[%emt 0:02:11]} Kh8 {[%emt 0:00:02]} 20. Qxf4 {[%emt 0:00:10]} Qxf4 {[%emt 0:00:07]} 21. exf4 {[%emt 0:00:04]} Re8 {[%emt 0:00:55]} 22. Bd5 {[%emt 0:00:17]} Kg7 {[%emt 0:00:41]} 23. g4 {[%emt 0:05:46]} d6 {[%emt 0:00:51]} 24. f5 {[%emt 0:00:04]} Kf6 {[%emt 0:02:16]} 25. Kg2 {[%emt 0:02:25]} a6 {[%emt 0:00:24]} 26. Kg3 {[%emt 0:00:41]} Rb8 {[%emt 0:01:28]} 27. Rad1 {[%emt 0:01:15]} Re5 {[%emt 0:01:28]} (27... h5 $142 28. h3 (28. gxh5 Bxf5 29. Bf3 Red8 $16) 28... b6) 28. Kf4 {[%emt 0:07:10] [#] Threatens to win with Be4.} b5 {[%emt 0:02:11]} (28... b6 {was called for.} 29. Rd2 Kg7) 29. c5 {[%emt 0:04:56]} Bxf5 {[%emt 0:00:58]} 30. cxd6 {[%emt 0:04:16] aiming for g5+.} ({But not} 30. gxf5 Rbe8 31. f3 (31. cxd6 Rxf5+ 32. Kg4 Rg8+ 33. Kh4 Rf4+ 34. Kh3 Rf5 $11) 31... Rxf5+ 32. Kg3 Rg5+ 33. Kf2 dxc5 34. bxc5 Rd8) 30... Bd7 {[%emt 0:04:28]} (30... Be6 {is a better defense.}) 31. Rfe1 {[%emt 0:05:12]} Rxe1 {[%emt 0:02:52]} 32. Rxe1 {[%emt 0:00:16]} Rb6 {[%emt 0:00:26]} 33. g5+ {[%emt 0:00:24]} Kg6 {[%emt 0:00:16]} 34. Re7 {[%emt 0:00:28][%csl LRd7,LRf7]} Rxd6 {[%emt 0:01:52]} 35. Bxf7+ {[%emt 0:00:16]} Kg7 {[%emt 0:00:09]} 36. Be8+ {[%emt 0:00:08] Weighted Error Value: White=0.21 (precise) /Black=0.65} 1-0